bitfinex-derivatives/quotes_SOLF0:USTF0_20250923
["timestamp","ask_amount","ask_price","bid_price","bid_amount"]
[1758599844305,7.73,216.87,216.77,4.1479]
[1758599844500,3.44141292,216.86,216.78,64.5216]
[1758599844713,7.73,216.91,216.8,64.516]
[1758599845013,3.4410549,216.9,216.81,68.6602]
[1758599845205,3.4410549,216.89,216.82,130.18]
[1758599845513,7.73,216.91,216.81,4.1471]
[1758599845702,3.43941658,216.9,216.84,4.1466]
[1758599845903,7.73,216.91,216.84,4.1466]
[1758599846104,3.43906667,216.9,216.84,4.1466]
[1758599846305,7.73,216.91,216.84,4.1466]
[1758599846705,3.4379593,216.9,216.84,4.1466]
[1758599846907,11.16836756,216.89,216.81,64.5119]
[1758599847101,7.73,216.89,216.82,64.5102]
[1758599847608,7.73,216.89,216.79,202.0689]
[1758599847609,3.43704707,216.88,216.81,130.46]
[1758599847812,7.73,216.89,216.82,130.44]
[1758599848116,3.43717853,216.88,216.82,130.44]
[1758599848310,7.73,216.89,216.82,130.44]
[1758599848511,3.43586783,216.88,216.82,130.44]
[1758599848708,7.73,216.89,216.82,130.44]
[1758599848908,3.43586575,216.88,216.82,4.147]
[1758599849108,3.49702684,216.87,216.82,4.147]
[1758599849314,7.73,216.89,216.82,4.147]
[1758599849516,3.49612893,216.88,216.82,4.147]
[1758599849808,3.4961297,216.87,216.82,4.147]
[1758599850115,7.73,216.87,216.82,4.147]
[1758599851318,11.1549,216.94,216.82,4.147]
[1758599851515,4.64682987,216.93,216.81,122.04]
[1758599851716,4.64682987,216.92,216.81,129.84]
[1758599852018,10.50431257,216.91,216.81,129.84]
[1758599852215,3.49431257,216.9,216.8,64.5157]
[1758599852419,3.49431257,216.89,216.81,129.84]
[1758599852717,3.49431257,216.88,216.8,64.5157]
[1758599853021,3.49431257,216.87,216.81,133.8671]
[1758599853321,7.01,216.91,216.81,133.8671]
[1758599853517,3.49293733,216.9,216.81,133.8671]
[1758599853707,3.49293733,216.89,216.81,133.8671]
[1758599853912,3.49293733,216.88,216.81,133.8671]
[1758599854114,3.49293733,216.87,216.81,133.8671]
[1758599854312,7.01,216.92,216.79,7.59]
[1758599854517,7.01,216.9,216.8,129.5]
[1758599854719,3.49290919,216.89,216.79,7.59]
[1758599854913,3.49290919,216.89,216.8,129.4]
[1758599855317,3.49290919,216.89,216.79,7.59]
[1758599855523,3.49290919,216.89,216.8,129.4]
[1758599855715,3.49290919,216.89,216.79,7.59]
[1758599855920,3.49290919,216.89,216.8,4.1473]
[1758599856119,3.49290919,216.89,216.8,133.4073]
[1758599856324,3.49290919,216.89,216.8,129.26]
[1758599856628,7.01,216.88,216.8,129.26]
[1758599856827,3.49290919,216.87,216.8,129.26]
[1758599857421,3.49290919,216.87,216.79,7.59]
[1758599857623,7.01,216.86,216.77,133.1679]
[1758599857824,3.49290919,216.85,216.77,133.1679]
[1758599858219,3.49290919,216.85,216.77,129.02]
[1758599859926,3.49290919,216.85,216.77,128.76]
[1758599860325,7.01,216.84,216.76,4.1481]
[1758599860527,3.49290919,216.83,216.75,135.8]
[1758599860928,3.49290919,216.83,216.75,7.12]
[1758599861229,3.49290919,216.83,216.75,135.7]
[1758599862023,3.49290919,216.83,216.75,139.8482]
[1758599862224,3.49290919,216.82,216.75,139.8482]
[1758599862425,3.49290919,216.81,216.76,128.42]
[1758599862725,3.49290919,216.8,216.76,128.42]
[1758599863028,3.49290919,216.79,216.76,128.42]
[1758599863230,3.49290919,216.78,216.77,7.12]
[1758599863625,12.1728977,216.89,216.8,7.12]
[1758599863826,3.50188104,216.88,216.8,7.12]
[1758599864026,3.50188104,216.87,216.8,7.12]
[1758599864232,14.47065176,216.89,216.8,7.12]
[1758599864233,3.50188104,216.86,216.8,7.12]
[1758599864430,3.50188104,216.85,216.81,7.12]
[1758599864630,3.50188104,216.84,216.78,7.12]
[1758599864932,3.50188104,216.83,216.8,7.12]
[1758599865132,3.50188104,216.82,216.81,7.12]
[1758599865620,3.50188104,216.82,216.81,11.2672]
[1758599866129,3.50188104,216.82,216.81,139.4072]
[1758599866325,3.50188104,216.82,216.81,11.2672]
[1758599866525,3.50188104,216.82,216.81,139.2072]
[1758599867324,5.1628977,216.89,216.87,7.12]
[1758599867533,5.1628977,216.9,216.86,11.2662]
[1758599867929,5.1628977,216.9,216.86,7.12]
[1758599868930,5.1628977,216.91,216.86,7.12]
[1758599869125,5.1628977,216.9,216.86,7.12]
[1758599869328,12.1728977,216.91,216.86,7.12]
[1758599870335,5.1628977,216.9,216.86,7.12]
[1758599873337,5.1628977,216.89,216.86,7.12]
[1758599875334,5.1628977,216.9,216.86,7.12]
[1758599875735,6.31530958,216.89,216.86,7.12]
[1758599876030,5.1628977,216.89,216.86,7.12]
[1758599877236,5.1628977,216.89,216.86,133.96]
[1758599878136,6.31532574,216.88,216.86,133.96]
[1758599878450,5.1628977,216.89,216.86,7.12]
[1758599878743,1.15244419,216.88,216.86,133.72]
[1758599879044,5.1628977,216.89,216.86,133.72]
[1758599879436,3.49328954,216.88,216.86,133.72]
[1758599879735,3.49328954,216.87,216.86,133.72]
[1758599879940,3.49328954,216.87,216.86,133.54]
[1758599881644,7.05,216.86,216.85,126.06]
[1758599881943,11.69583763,216.86,216.82,126.02]
[1758599882140,16.86386736,216.85,216.82,126.02]
[1758599882336,3.49328954,216.84,216.82,126.02]
[1758599882532,3.49328954,216.83,216.82,126.02]
[1758599882841,3.49328954,216.83,216.79,4.1475]
[1758599883145,12.21802973,216.85,216.82,126.0]
[1758599883341,8.5946584,216.84,216.82,126.0]
[1758599883545,3.42662867,216.83,216.82,126.0]
[1758599884840,3.42662867,216.83,216.81,125.76]
[1758599885144,3.42662867,216.82,216.8,133.49]
[1758599885340,3.42662867,216.81,216.75,4.1484]
[1758599885538,3.42662867,216.8,216.76,125.74]
[1758599885740,3.42662867,216.79,216.77,7.75]
[1758599885939,3.42662867,216.78,216.77,7.75]
[1758599887753,3.42662867,216.78,216.77,133.25]
[1758599889237,3.42662867,216.78,216.77,7.75]
[1758599889438,3.42662867,216.78,216.77,133.19]
[1758599891143,3.42662867,216.78,216.77,125.44]
[1758599891344,5.16802973,216.87,216.79,4.1475]
[1758599891549,4.57835905,216.86,216.8,132.83]
[1758599891747,3.42567111,216.85,216.8,125.08]
[1758599891949,3.42567111,216.84,216.82,7.75]
[1758599892152,3.42567111,216.83,216.82,7.75]
[1758599894949,3.42567111,216.83,216.82,132.69]
[1758599897146,3.42567111,216.83,216.82,132.47]
[1758599898155,7.111e-05,216.83,216.82,7.75]
[1758599898451,7.111e-05,216.83,216.82,132.17]
[1758599900557,5.16802973,216.92,216.86,7.01]
[1758599900757,1.15241244,216.91,216.87,131.15]
[1758599901056,7.49,216.91,216.87,131.15]
[1758599901556,7.49,216.94,216.88,7.01]
[1758599902654,7.49,216.94,216.88,8.47833755]
[1758599902855,7.49,216.94,216.9,4.1454]
[1758599903048,7.49,216.94,216.91,124.04]
[1758599903449,11.6346,216.95,216.84,4.1466]
[1758599903655,7.49,216.92,216.85,123.94]
[1758599904169,1.46833755,216.89,216.86,123.9]
[1758599904356,7.49,216.88,216.86,123.9]
[1758599907655,7.49,216.9,216.86,123.9]
[1758599909760,7.49,216.9,216.86,130.91]
[1758599910160,3.41333202,216.89,216.86,130.91]
[1758599910362,3.41333202,216.88,216.86,130.91]
[1758599910556,3.41333202,216.87,216.86,130.91]
[1758599911059,3.41333202,216.89,216.86,130.91]
[1758599911265,3.41333202,216.88,216.86,130.91]
[1758599911456,3.41333202,216.87,216.86,130.91]
[1758599912665,3.41333202,216.87,216.86,135.0563]
[1758599913661,3.41333202,216.87,216.86,130.91]
[1758599925767,3.41333202,216.87,216.86,128.95]
[1758599927570,3.41333202,216.87,216.86,128.73]
[1758599928674,3.41333202,216.87,216.86,7.01]
[1758599928874,3.41333202,216.87,216.86,121.6]
[1758599929175,10.68333202,216.87,216.86,121.6]
[1758599929573,10.68315153,216.87,216.86,121.6]
[1758599930175,3.41315153,216.87,216.86,7.07]
[1758599930375,3.41315153,216.87,216.86,128.71]
[1758599932173,3.41315153,216.87,216.86,121.38]
[1758599932374,3.41315153,216.87,216.71,64.5429]
[1758599932375,3.41315153,216.87,216.81,7.07]
[1758599932580,3.41315153,216.86,216.82,121.34]
[1758599932772,7.27,216.84,216.82,121.34]
[1758599932972,3.41315153,216.83,216.81,7.07]
[1758599933180,7.27,216.84,216.82,121.38]
[1758599933376,10.68592632,216.83,216.78,7.07]
[1758599933575,7.27,216.81,216.75,8.53833755]
[1758599933783,7.27,216.81,216.72,4.1488]
[1758599933784,3.41592632,216.8,216.76,7.07]
[1758599934079,3.41592632,216.79,216.77,121.36]
[1758599934280,3.41592632,216.78,216.77,128.43]
[1758599934677,3.41592632,216.8,216.77,128.43]
[1758599934881,3.41592632,216.79,216.77,121.36]
[1758599935081,3.41592632,216.78,216.77,121.36]
[1758599935280,3.41592632,216.78,216.77,128.43]
[1758599935478,3.41592632,216.8,216.77,128.43]
[1758599935679,3.41592632,216.79,216.77,128.43]
[1758599935987,3.41592632,216.78,216.77,122.82833755]
[1758599936377,2.632e-05,216.78,216.77,129.89833755]
[1758599936581,12.43802973,216.89,216.8,7.07]
[1758599936885,12.43802973,216.89,216.81,122.68833755]
[1758599937584,4.1459,216.88,216.81,122.68833755]
[1758599938281,4.1463,216.86,216.8,7.07]
[1758599938588,11.4163,216.86,216.82,7.07]
[1758599938784,11.4163,216.86,216.83,115.86]
[1758599939691,7.27,216.87,216.83,122.93]
[1758599939882,7.27,216.87,216.83,115.86]
[1758599940183,16.58392973,216.89,216.83,115.86]
[1758599940389,9.31392973,216.89,216.83,122.93]
[1758599941183,5.16802973,216.88,216.83,115.86]
[1758599941389,7.58,216.88,216.84,7.01]
[1758599942285,9.31392973,216.89,216.8,5.61563755]
[1758599942492,9.31392973,216.89,216.81,128.03]
[1758599942888,4.1462,216.87,216.81,7.01]
[1758599943690,5.16802973,216.88,216.82,1.46833755]
[1758599943889,5.16802973,216.89,216.83,7.01]
[1758599945883,16.89312973,216.92,216.84,1.46833755]
[1758599946096,16.89312973,216.92,216.85,7.01]
[1758599947387,9.31312973,216.92,216.85,7.01]
[1758599948382,5.16802973,216.91,216.85,7.01]
[1758599948586,3.40021641,216.9,216.85,7.01]
[1758599948789,3.40021641,216.89,216.85,7.01]
[1758599949087,3.40021641,216.88,216.84,1.46833755]
[1758599949287,3.40021641,216.87,216.85,7.01]
[1758599949489,3.40021641,216.86,216.85,7.01]
[1758599952798,3.40021641,216.86,216.85,128.69833755]
[1758599955996,3.40021641,216.86,216.85,132.84483755]
[1758599956190,12.27802973,216.96,216.86,7.38]
[1758599956499,12.27802973,216.96,216.89,8.84833755]
[1758599956500,5.16802973,216.95,216.89,8.84833755]
[1758599956704,7.11,216.94,216.9,127.38]
[1758599956998,7.11,216.94,216.91,7.38]
[1758599957198,12.27802973,216.96,216.9,120.0]
[1758599957498,12.27802973,216.96,216.9,127.38]
[1758599957899,7.11,216.96,216.92,7.38]
[1758599958095,7.11,216.96,216.91,1.46833755]
[1758599958299,7.11,216.96,216.92,7.38]
[1758599958800,7.11,216.96,216.91,1.46833755]
[1758599959293,7.11,216.96,216.92,7.38]
[1758599959702,7.11,216.96,216.91,1.46833755]
[1758599959997,7.11,216.96,216.92,7.38]
[1758599960691,7.11,216.96,216.91,1.46833755]
[1758599960888,7.11,216.96,216.92,7.38]
[1758599961303,7.11,216.96,216.91,1.46833755]
[1758599961703,7.11,216.96,216.92,7.38]
[1758599962498,5.16802973,216.99,216.91,1.46833755]
[1758599962808,7.11,217.0,216.93,7.38]
[1758599963192,7.11,217.0,216.94,4.1446]
[1758599963396,7.11,217.04,216.96,7.38]
[1758599964795,4.1425,217.06,216.96,7.38]
[1758599965106,11.2525,217.06,216.96,7.38]
[1758599966105,11.2525,217.06,216.97,7.38]
[1758599966602,11.2525,217.06,216.98,100.94]
[1758599967796,7.11,217.03,216.97,7.38]
[1758599967995,4.1429,217.04,216.98,103.46]
[1758599968294,7.11,217.03,216.98,103.46]
[1758599968500,4.1429,217.04,216.98,103.46]
[1758599968699,11.2529,217.04,216.98,103.46]
[1758599968999,4.1433,217.02,216.96,7.38]
[1758599969206,7.11,217.0,216.94,91.86]
[1758599970804,11.2536,217.0,216.94,91.86]
[1758599972495,11.2536,217.0,216.91,7.38]
[1758599972703,7.44,216.97,216.91,7.38]
[1758599972899,7.44,216.97,216.92,119.08]
[1758599973103,64.4575,217.0,216.92,119.08]
[1758599973298,10.7610378,216.99,216.92,119.08]
[1758599973497,7.44,216.99,216.92,119.08]
[1758599973701,7.44,216.99,216.91,7.38]
[1758599973906,4.1443,216.97,216.92,119.08]
[1758599974106,11.5843,216.97,216.93,7.4]
[1758599975314,7.44,216.97,216.92,119.08]
[1758599975507,7.44,216.97,216.93,7.4]
[1758599975709,7.44,217.02,216.93,7.4]
[1758599975905,4.1435,217.01,216.93,7.4]
[1758599977221,4.1439,216.99,216.93,7.4]
[1758599977417,7.44,216.98,216.93,7.4]
[1758599977715,7.44,216.98,216.91,119.02]
[1758599977911,2.29291641,217.0,216.91,119.02]
[1758599978110,7.44,216.98,216.9,119.06]
[1758599978311,2.29291641,217.0,216.9,119.06]
[1758599978620,3.32083473,216.99,216.9,119.06]
[1758599978818,2.29291641,217.0,216.9,119.06]
[1758599978819,7.44,216.96,216.9,119.06]
[1758599982430,4.1438,217.0,216.91,7.4]
[1758599982627,3.32409617,216.99,216.91,7.4]
[1758599982826,4.1438,217.0,216.91,7.4]
[1758599983023,3.3240933,216.99,216.92,7.4]
[1758599983230,4.1438,217.0,216.92,7.4]
[1758599983525,7.44,217.01,216.92,7.4]
[1758599983729,3.32452686,217.0,216.92,7.4]
[1758599983930,7.44,217.01,216.92,7.4]
[1758599984226,3.32452475,217.0,216.92,7.4]
[1758599984430,7.44,217.01,216.92,7.4]
[1758599984629,3.3252179,217.0,216.92,7.4]
[1758599984825,7.44,217.01,216.93,4.1449]
[1758599985026,3.32518267,217.0,216.94,7.4]
[1758599985225,7.44,217.01,216.94,7.4]
[1758599985418,3.3253267,217.0,216.94,7.4]
[1758599985617,7.44,217.01,216.94,7.4]
[1758599985821,3.32532517,217.0,216.94,7.4]
[1758599986031,7.44,217.01,216.94,7.4]
[1758599986830,4.143,217.03,216.94,7.4]
[1758599987033,3.32536492,217.02,216.94,7.4]
[1758599987224,3.32536492,217.01,216.94,7.4]
[1758599987424,4.143,217.03,216.94,7.4]
[1758599987624,3.32618623,217.02,216.94,7.4]
[1758599987925,3.32618623,217.01,216.94,7.4]
[1758599988125,4.143,217.03,216.94,7.4]
[1758599988324,3.32709739,217.02,216.94,7.4]
[1758599988525,3.32709739,217.01,216.95,7.4]
[1758599988722,3.32709739,217.0,216.96,118.46]
[1758599989027,4.143,217.03,216.97,7.4]
[1758599989227,10.76709739,217.02,216.96,118.46]
[1758599989427,3.32709739,217.01,216.96,118.46]
[1758599989628,3.32709739,217.01,216.98,7.4]
[1758599992935,3.32709739,217.01,216.97,7.4]
[1758599993435,3.32709739,217.01,216.96,118.46]
[1758599995228,3.32709739,217.01,216.97,7.4]
[1758599995932,3.32709739,217.01,216.96,118.46]
[1758599996237,3.32709739,217.01,216.97,7.4]
[1758599996437,10.76709739,217.01,216.96,118.46]
[1758599996637,7.44,217.01,216.97,7.4]
[1758599996937,7.44,217.01,216.96,118.46]
[1758599997342,3.33341424,217.0,216.96,118.46]
[1758599997637,7.44,217.01,216.97,7.4]
[1758599997839,3.33341424,217.0,216.96,118.46]
[1758599998038,4.1424,217.07,216.97,7.4]
[1758599998234,3.33341424,217.06,216.98,7.4]
[1758599998433,3.33341424,217.05,216.98,7.4]
[1758599998630,3.33341424,217.04,216.98,7.4]
[1758599998834,4.1424,217.07,216.98,7.4]
[1758599999139,3.33334619,217.06,216.98,7.4]
[1758599999336,3.33334619,217.05,216.98,7.4]
[1758599999536,3.33334619,217.04,216.98,7.4]
[1758599999841,3.33334619,217.03,216.99,118.1]
[1758600000041,10.77334619,217.02,216.99,125.5]
[1758600000241,3.33334619,217.01,216.99,125.5]
[1758600000447,7.44,217.02,216.99,125.5]
[1758600000638,3.33008733,217.01,216.99,125.5]
[1758600000944,7.44,217.02,216.99,125.5]
[1758600001144,3.33008656,217.01,216.99,125.5]
[1758600001344,3.33008656,217.0,216.99,125.5]
[1758600001641,7.06,217.08,217.0,7.51]
[1758600001833,3.33046606,217.07,217.01,2.29291641]
[1758600002034,3.33046606,217.06,217.02,7.51]
[1758600002239,3.33046606,217.05,217.02,7.51]
[1758600002438,7.06,217.08,217.02,7.51]
[1758600002639,3.33055367,217.07,217.01,2.29291641]
[1758600002837,3.33055367,217.06,217.03,7.51]
[1758600003041,7.06,217.11,217.05,7.51]
[1758600003240,3.33025803,217.1,217.05,7.51]
[1758600003439,3.33025803,217.09,217.05,4.1426]
[1758600003736,3.33025803,217.08,217.06,7.51]
[1758600003940,7.06,217.14,217.07,4.1422]
[1758600004137,3.32940618,217.13,217.07,4.1422]
[1758600004332,3.32940618,217.12,217.05,7.51]
[1758600004637,10.38940618,217.11,217.06,7.51]
[1758600004836,3.32940618,217.1,217.03,7.51]
[1758600005038,3.32940618,217.09,217.04,118.08]
[1758600005238,7.06,217.11,217.05,7.51]
[1758600005435,3.32739803,217.1,217.04,118.08]
[1758600005638,7.06,217.11,217.05,7.51]
[1758600005943,69.57232973,217.18,217.06,118.08]
[1758600005944,3.32715559,217.1,217.06,118.08]
[1758600006143,64.4111,217.16,217.06,118.08]
[1758600006343,3.32760093,217.15,217.06,118.08]
[1758600006543,3.32760093,217.14,217.06,118.08]
[1758600006746,3.32760093,217.13,217.06,118.08]
[1758600007043,3.32760093,217.12,217.06,118.08]
[1758600007340,3.32760093,217.11,217.06,118.08]
[1758600007545,7.06,217.17,217.07,7.51]
[1758600007740,7.06,217.15,217.07,7.51]
[1758600008044,7.46691981,217.14,217.07,7.51]
[1758600008241,3.32591981,217.13,217.07,7.51]
[1758600008446,3.32591981,217.12,217.06,118.08]
[1758600008647,3.32591981,217.11,217.07,7.51]
[1758600008842,4.141,217.14,217.07,7.51]
[1758600009040,3.32458401,217.13,217.07,7.51]
[1758600009344,3.32458401,217.12,217.06,118.08]
[1758600009648,4.141,217.14,217.07,7.51]
[1758600009844,3.32351208,217.13,217.07,7.51]
[1758600010044,7.06,217.15,217.07,7.51]
[1758600010247,3.32335063,217.14,217.07,7.51]
[1758600010444,3.32335063,217.13,217.07,7.51]
[1758600010643,7.06,217.15,217.07,7.51]
[1758600010845,3.32222678,217.14,217.07,4.1422]
[1758600011047,11.2003,217.18,217.08,7.51]
[1758600011243,3.32190403,217.17,217.09,4.1419]
[1758600011442,11.2003,217.18,217.1,7.51]
[1758600011443,3.32190403,217.16,217.1,7.51]
[1758600011647,3.32190403,217.15,217.08,7.51]
[1758600011847,11.2003,217.18,217.08,7.51]
[1758600012047,3.32052212,217.17,217.08,7.51]
[1758600012346,3.32052212,217.16,217.08,7.51]
[1758600012540,10.38052212,217.15,217.09,118.04]
[1758600012744,7.06,217.15,217.09,118.04]
[1758600013253,7.06,217.15,217.08,7.51]
[1758600013556,64.4018,217.19,217.04,4.1427]
[1758600013557,7.06,217.13,217.04,7.51]
[1758600013846,4.1419,217.09,217.04,72.52]
[1758600014448,11.2019,217.09,217.05,7.51]
[1758600014650,7.06,217.08,217.05,7.51]
[1758600014955,7.06,217.12,217.05,7.51]
[1758600015142,3.31863577,217.11,217.05,7.51]
[1758600015347,4.1407,217.15,217.05,7.51]
[1758600015548,3.31796452,217.14,217.05,7.51]
[1758600015852,7.06,217.16,217.08,7.68]
[1758600016052,3.31773227,217.15,217.08,7.68]
[1758600016256,11.59,217.2,217.1,7.68]
[1758600016451,3.31624438,217.19,217.11,118.02]
[1758600016651,3.31624438,217.18,217.11,118.02]
[1758600016956,11.59,217.2,217.11,118.02]
[1758600017251,3.31615308,217.19,217.12,7.68]
[1758600017445,7.45,217.2,217.12,7.68]
[1758600017641,3.31470376,217.19,217.12,7.68]
[1758600017843,7.45,217.2,217.12,7.68]
[1758600018047,3.31470376,217.19,217.12,7.68]
[1758600018252,7.45,217.2,217.12,7.68]
[1758600018458,3.31381949,217.19,217.12,7.68]
[1758600018649,7.45,217.2,217.13,118.02]
[1758600018852,3.3138546,217.19,217.13,118.02]
[1758600019051,7.45,217.17,217.13,118.02]
[1758600020053,7.45,217.17,217.13,125.7]
[1758600020248,7.45,217.17,217.14,118.0]
[1758600020462,7.45,217.17,217.13,7.68]
[1758600020646,7.45,217.17,217.14,118.0]
[1758600021258,7.45,217.17,217.14,125.68]
[1758600021560,4.1396,217.22,217.15,7.68]
[1758600021851,3.31213974,217.21,217.15,2.29291641]
[1758600022056,7.45,217.28,217.16,7.68]
[1758600022248,3.31171123,217.27,217.16,7.68]
[1758600022450,3.31171123,217.26,217.16,7.68]
[1758600022644,3.31171123,217.25,217.17,7.68]
[1758600022848,3.31171123,217.24,217.17,7.68]
[1758600023047,7.45,217.28,217.17,7.68]
[1758600023252,3.30983348,217.27,217.17,7.68]
[1758600023448,3.30983348,217.26,217.17,7.68]
[1758600023750,3.30983348,217.25,217.17,7.68]
[1758600024049,4.1387,217.26,217.17,7.68]
[1758600024250,3.3088891,217.25,217.17,7.68]
[1758600024454,4.1387,217.26,217.17,7.68]
[1758600024655,3.30818982,217.25,217.19,1.46421778]
[1758600024856,4.1387,217.26,217.2,117.96]
[1758600025159,10.75818982,217.25,217.2,125.64]
[1758600025459,3.30818982,217.24,217.2,125.64]
[1758600026759,3.30818982,217.24,217.22,7.68]
[1758600026963,7.45,217.3,217.23,1.46421778]
[1758600027264,7.45,217.3,217.23,9.14421778]
[1758600027265,3.30709485,217.29,217.23,9.14421778]
[1758600027559,3.30709485,217.28,217.24,7.68]
[1758600027759,4.1377,217.32,217.24,7.68]
[1758600027963,3.30549468,217.31,217.25,1.46421778]
[1758600028259,3.30549468,217.3,217.27,7.68]
[1758600028465,7.45,217.34,217.27,9.14421778]
[1758600028656,3.30403809,217.33,217.27,9.14421778]
[1758600028858,3.30403809,217.32,217.28,7.68]
[1758600029062,7.45,217.34,217.28,7.68]
[1758600029258,10.75391265,217.33,217.28,7.68]
[1758600029561,7.45,217.33,217.28,7.68]
[1758600030065,11.5874,217.33,217.28,7.68]
[1758600030261,7.45,217.32,217.28,117.92]
[1758600030565,7.33,217.32,217.28,125.3]
[1758600031360,7.33,217.32,217.28,7.38]
[1758600031561,7.33,217.32,217.28,93.58]
[1758600032060,4.1368,217.36,217.28,86.2]
[1758600032263,12.03147252,217.35,217.28,86.2]
[1758600032463,3.23725474,217.34,217.28,86.2]
[1758600032861,8.79421778,217.35,217.28,86.2]
[1758600033761,4.1371,217.34,217.28,86.2]
[1758600034167,4.1371,217.34,217.28,93.58]
[1758600038066,1.46421778,217.29,217.2,1.46421778]
[1758600038267,1.46421778,217.29,217.21,7.38]
[1758600038963,1.46421778,217.25,217.21,7.38]
[1758600039157,7.33,217.24,217.16,7.38]
[1758600039470,4.1395,217.22,217.18,7.38]
[1758600040261,11.4695,217.22,217.18,7.38]
[1758600040461,4.1399,217.2,217.14,7.38]
[1758600044769,8.79421778,217.17,217.1,355.52]
[1758600045871,4.1406,217.16,217.1,355.52]
[1758600046272,1.46421778,217.19,217.12,1.46421778]
[1758600046466,1.46421778,217.21,217.12,1.46421778]
[1758600046669,3.24704062,217.2,217.12,1.46421778]
[1758600046867,3.24704062,217.19,217.12,1.46421778]
[1758600047068,1.46421778,217.21,217.12,1.46421778]
[1758600047368,3.24703987,217.2,217.12,1.46421778]
[1758600047573,3.24703987,217.19,217.12,1.46421778]
[1758600047772,3.24703987,217.18,217.12,1.46421778]
[1758600047975,7.33,217.17,217.12,117.82]
[1758600048473,7.33,217.17,217.11,125.18]
[1758600055178,7.33,217.17,217.11,7.38]
[1758600055373,12.93441778,217.18,217.12,117.78]
[1758600055677,3.2523258,217.17,217.12,117.78]
[1758600055877,7.33,217.16,217.12,125.16]
[1758600056474,7.33,217.15,217.12,125.16]
[1758600057880,8.79421778,217.18,217.12,125.16]
[1758600058176,10.58265739,217.17,217.13,7.38]
[1758600058380,7.33,217.17,217.13,7.38]
[1758600058582,1.46421778,217.18,217.12,117.76]
[1758600058784,7.33,217.16,217.12,117.76]
[1758600059080,7.33,217.16,217.12,125.14]
[1758600059676,4.1404,217.17,217.12,125.14]
[1758600059870,4.1404,217.17,217.12,117.76]
[1758600060074,4.1408,217.15,217.12,117.76]
[1758600060276,1.46421778,217.14,217.05,7.38]
[1758600060472,4.1417,217.1,217.05,7.38]
[1758600060676,10.55263542,217.09,217.05,125.14]
[1758600060882,7.27,217.09,217.05,125.14]
[1758600061380,11.4121,217.08,217.05,7.38]
[1758600062577,11.4121,217.08,216.98,4.1438]
[1758600062578,4.1425,217.07,217.0,7.41]
[1758600062785,1.46421778,217.06,217.01,117.74]
[1758600063080,17.87746913,217.1,217.02,7.41]
[1758600063283,3.28045085,217.09,217.02,7.41]
[1758600063584,19.34168691,217.1,217.02,7.41]
[1758600063882,3.27868125,217.09,217.02,7.41]
[1758600064082,26.61168691,217.1,217.02,7.41]
[1758600064279,1.46421778,217.15,217.05,1.46421778]
[1758600064580,3.27729569,217.14,217.09,1.46421778]
[1758600064781,1.46421778,217.19,217.1,7.41]
[1758600064978,3.27670573,217.18,217.1,7.41]
[1758600065181,3.27670573,217.17,217.1,7.41]
[1758600065483,4.1402,217.18,217.1,7.41]
[1758600065682,3.27605636,217.17,217.11,1.46421778]